[Event "December 19 Early 2023"]
[Site "https://www.chess.com"]
[Date "2023.12.19"]
[Round "3"]
[White "Kovalyov, Eduard"]
[Black "Bach, Matthias"]
[Result "1/2-1/2"]
[Board "190"]
[TimeControl "180+1"]
[WhiteFideId "14118033"]
[BlackFideId "4603168"]
[WhiteElo "2300"]
[BlackElo "2130"]
[WhiteTeam "UKR"]
[BlackTeam "GER"]
[WhiteClock "0:00:16"]
[BlackClock "0:00:18"]

1. Nf3 {[%clk 0:02:56]}  d5 {[%clk 0:02:49]} 2. d4 {[%clk 0:02:56]}  c5 {[%clk 0:02:48]} 3. c4 {[%clk 0:02:54]}  cxd4 {[%clk 0:02:45]} 4. cxd5 {[%clk 0:02:53]}  Qxd5 {[%clk 0:02:44]} 5. Nc3 {[%clk 0:02:52]}  Qa5 {[%clk 0:02:42]} 6. Nxd4 {[%clk 0:02:47]}  a6 {[%clk 0:02:39]} 7. g3 {[%clk 0:02:42]}  e5 {[%clk 0:02:38]} 8. Nb3 {[%clk 0:02:41]}  Qd8 {[%clk 0:02:18]} 9. Qxd8+ {[%clk 0:02:39]}  Kxd8 {[%clk 0:02:19]} 10. Bg2 {[%clk 0:02:39]}  Nc6 {[%clk 0:02:17]} 11. Bg5+ {[%clk 0:02:37]}  f6 {[%clk 0:02:16]} 12. O-O-O+ {[%clk 0:02:37]}  Kc7 {[%clk 0:02:09]} 13. Nd5+ {[%clk 0:02:37]}  Kb8 {[%clk 0:02:09]} 14. Be3 {[%clk 0:02:36]}  Nb4 {[%clk 0:01:46]} 15. Nb6 {[%clk 0:02:28]}  Nxa2+ {[%clk 0:01:46]} 16. Kb1 {[%clk 0:02:28]}  Nb4 {[%clk 0:01:45]} 17. Nxa8 {[%clk 0:02:12]}  Kxa8 {[%clk 0:01:42]} 18. Rd8 {[%clk 0:02:10]}  Ne7 {[%clk 0:01:34]} 19. Rc1 {[%clk 0:01:57]}  Nbc6 {[%clk 0:01:31]} 20. Re8 {[%clk 0:01:46]}  Kb8 {[%clk 0:01:18]} 21. Bb6 {[%clk 0:01:40]}  g6 {[%clk 0:01:14]} 22. Ka1 {[%clk 0:01:25]}  Bg7 {[%clk 0:01:13]} 23. Rxh8 {[%clk 0:01:13]}  Bxh8 {[%clk 0:01:14]} 24. Na5 {[%clk 0:01:07]}  Bd7 {[%clk 0:00:54]} 25. Nxc6+ {[%clk 0:01:04]}  Bxc6 {[%clk 0:00:51]} 26. Bxc6 {[%clk 0:01:04]}  Nxc6 {[%clk 0:00:51]} 27. e4 {[%clk 0:01:02]}  f5 {[%clk 0:00:48]} 28. f3 {[%clk 0:01:02]}  Bf6 {[%clk 0:00:47]} 29. Rd1 {[%clk 0:01:00]}  Kc8 {[%clk 0:00:43]} 30. Ka2 {[%clk 0:01:00]}  Nd4 {[%clk 0:00:35]} 31. Bxd4 {[%clk 0:00:55]}  exd4 {[%clk 0:00:36]} 32. Kb3 {[%clk 0:00:56]}  Kd7 {[%clk 0:00:35]} 33. Kc4 {[%clk 0:00:56]}  Kd6 {[%clk 0:00:35]} 34. Kd3 {[%clk 0:00:53]}  fxe4+ {[%clk 0:00:26]} 35. Kxe4 {[%clk 0:00:51]}  Kc5 {[%clk 0:00:25]} 36. Kd3 {[%clk 0:00:45]}  Kb4 {[%clk 0:00:25]} 37. Kc2 {[%clk 0:00:41]}  Kc4 {[%clk 0:00:24]} 38. b3+ {[%clk 0:00:42]}  Kb4 {[%clk 0:00:23]} 39. f4 {[%clk 0:00:40]}  b5 {[%clk 0:00:23]} 40. g4 {[%clk 0:00:40]}  a5 {[%clk 0:00:22]} 41. f5 {[%clk 0:00:37]}  gxf5 {[%clk 0:00:22]} 42. gxf5 {[%clk 0:00:38]}  a4 {[%clk 0:00:22]} 43. bxa4 {[%clk 0:00:38]}  bxa4 {[%clk 0:00:22]} 44. Rb1+ {[%clk 0:00:38]}  Kc4 {[%clk 0:00:22]} 45. Rb6 {[%clk 0:00:29]}  d3+ {[%clk 0:00:20]} 46. Kd2 {[%clk 0:00:29]}  Bg5+ {[%clk 0:00:19]} 47. Kd1 {[%clk 0:00:29]}  a3 {[%clk 0:00:18]} 48. Ra6 {[%clk 0:00:29]}  Kb3 {[%clk 0:00:18]} 49. Rb6+ {[%clk 0:00:30]}  Kc3 {[%clk 0:00:18]} 50. Ra6 {[%clk 0:00:30]}  Kb3 {[%clk 0:00:18]} 51. f6 {[%clk 0:00:27]}  a2 {[%clk 0:00:14]} 52. f7 {[%clk 0:00:25]}  Be7 {[%clk 0:00:14]} 53. Rxa2 {[%clk 0:00:16]}  Kxa2 {[%clk 0:00:14]} 54. Kd2 {[%clk 0:00:16]}  Kb3 {[%clk 0:00:13]} 55. Kxd3 {[%clk 0:00:17]}  Kb4 {[%clk 0:00:13]} 56. Kd4 {[%clk 0:00:17]}  Kb5 {[%clk 0:00:13]} 57. Kd5 {[%clk 0:00:18]}  Bf8 {[%clk 0:00:13]} 58. Ke6 {[%clk 0:00:17]}  Kc6 {[%clk 0:00:13]} 59. h4 {[%clk 0:00:17]}  Kc7 {[%clk 0:00:13]} 60. h5 {[%clk 0:00:17]}  Kc8 {[%clk 0:00:13]} 61. Kf6 {[%clk 0:00:14]}  Kd8 {[%clk 0:00:13]} 62. Ke6 {[%clk 0:00:14]}  Kc8 {[%clk 0:00:13]} 63. Kf6 {[%clk 0:00:14]}  Kd8 {[%clk 0:00:13]} 64. Ke6 {[%clk 0:00:15]}  Kc7 {[%clk 0:00:13]} 65. Kf6 {[%clk 0:00:15]}  Kd7 {[%clk 0:00:14]} 66. Ke5 {[%clk 0:00:14]}  Ke7 {[%clk 0:00:14]} 67. Kf5 {[%clk 0:00:14]}  Kxf7 {[%clk 0:00:15]} 68. Kf4 {[%clk 0:00:14]}  Kg7 {[%clk 0:00:15]} 69. Kg3 {[%clk 0:00:14]}  Be7 {[%clk 0:00:15]} 70. h6+ {[%clk 0:00:14]}  Kxh6 {[%clk 0:00:15]} 71. Kh2 {[%clk 0:00:15]}  Kg5 {[%clk 0:00:16]} 72. Kh1 {[%clk 0:00:15]}  h5 {[%clk 0:00:17]} 73. Kg1 {[%clk 0:00:16]}  h4 {[%clk 0:00:17]} 74. Kh1 {[%clk 0:00:17]}  h3 {[%clk 0:00:18]} 75. Kh2 {[%clk 0:00:17]}  Bd6+ {[%clk 0:00:18]} 76. Kxh3 {[%clk 0:00:16]} 1/2-1/2

[Event "December 19 Early 2023"]
[Site "https://www.chess.com"]
[Date "2023.12.19"]
[Round "3"]
[White "Veleshnja, Zino"]
[Black "Chemin, Justo Reinaldo"]
[Result "1/2-1/2"]
[Board "191"]
[TimeControl "180+1"]
[WhiteFideId "4701313"]
[BlackFideId "2101580"]
[WhiteElo "2216"]
[BlackElo "1940"]
[WhiteTeam "ALB"]
[BlackTeam "BRA"]
[WhiteClock "0:00:59"]
[BlackClock "0:00:02"]

1. d4 {[%clk 0:03:00]}  d5 {[%clk 0:02:59]} 2. c4 {[%clk 0:03:00]}  e6 {[%clk 0:02:58]} 3. Nc3 {[%clk 0:03:00]}  c6 {[%clk 0:02:59]} 4. cxd5 {[%clk 0:02:58]}  exd5 {[%clk 0:02:58]} 5. Qc2 {[%clk 0:02:57]}  Nf6 {[%clk 0:02:56]} 6. Bg5 {[%clk 0:02:57]}  Be7 {[%clk 0:02:56]} 7. e3 {[%clk 0:02:57]}  Nbd7 {[%clk 0:02:48]} 8. Bd3 {[%clk 0:02:57]}  Nh5 {[%clk 0:02:46]} 9. Bxe7 {[%clk 0:02:54]}  Qxe7 {[%clk 0:02:46]} 10. Nge2 {[%clk 0:02:55]}  g6 {[%clk 0:02:40]} 11. g4 {[%clk 0:02:54]}  Ng7 {[%clk 0:02:35]} 12. O-O-O {[%clk 0:02:53]}  Nb6 {[%clk 0:02:21]} 13. Nf4 {[%clk 0:02:53]}  Ne6 {[%clk 0:02:14]} 14. h3 {[%clk 0:02:47]}  Bd7 {[%clk 0:02:08]} 15. Kb1 {[%clk 0:02:46]}  Nxf4 {[%clk 0:01:58]} 16. exf4 {[%clk 0:02:46]}  O-O-O {[%clk 0:01:59]} 17. f5 {[%clk 0:02:37]}  Qf6 {[%clk 0:01:54]} 18. f4 {[%clk 0:02:34]}  gxf5 {[%clk 0:01:39]} 19. g5 {[%clk 0:02:34]}  Qxd4 {[%clk 0:01:32]} 20. Bxf5 {[%clk 0:02:31]}  Qxf4 {[%clk 0:01:32]} 21. Nxd5 {[%clk 0:02:01]}  Qxg5 {[%clk 0:00:48]} 22. Rhg1 {[%clk 0:01:46]}  Bxf5 {[%clk 0:00:36]} 23. Ne7+ {[%clk 0:01:40]}  Qxe7 {[%clk 0:00:32]} 24. Qxf5+ {[%clk 0:01:41]}  Qe6 {[%clk 0:00:28]} 25. Qf4 {[%clk 0:01:40]}  Rhe8 {[%clk 0:00:26]} 26. Rde1 {[%clk 0:01:26]}  Qxe1+ {[%clk 0:00:19]} 27. Rxe1 {[%clk 0:01:27]}  Rxe1+ {[%clk 0:00:19]} 28. Kc2 {[%clk 0:01:28]}  Rde8 {[%clk 0:00:14]} 29. Qxf7 {[%clk 0:01:23]}  R8e7 {[%clk 0:00:12]} 30. Qf8+ {[%clk 0:01:20]}  Kc7 {[%clk 0:00:12]} 31. Qf4+ {[%clk 0:01:20]}  Kd7 {[%clk 0:00:10]} 32. a4 {[%clk 0:01:16]}  Nd5 {[%clk 0:00:09]} 33. Qg4+ {[%clk 0:01:17]}  Kc7 {[%clk 0:00:08]} 34. Qg3+ {[%clk 0:01:12]}  Kb6 {[%clk 0:00:06]} 35. Qb3+ {[%clk 0:01:13]}  Kc7 {[%clk 0:00:05]} 36. Qg3+ {[%clk 0:01:13]}  Kd7 {[%clk 0:00:06]} 37. Qg4+ {[%clk 0:01:05]}  R7e6 {[%clk 0:00:04]} 38. Qg7+ {[%clk 0:00:58]}  Re7 {[%clk 0:00:02]} 39. Qg4+ {[%clk 0:00:59]} 1/2-1/2

[Event "December 19 Early 2023"]
[Site "https://www.chess.com"]
[Date "2023.12.19"]
[Round "3"]
[White "Porozhnyak, Maya"]
[Black "Hobson, Kenneth"]
[Result "1-0"]
[Board "192"]
[TimeControl "180+1"]
[WhiteFideId "34115843"]
[BlackFideId "480819"]
[WhiteElo "1932"]
[BlackElo "1953"]
[WhiteTeam "RUS"]
[BlackTeam "ENG"]
[WhiteClock "0:00:22"]
[BlackClock "0:00:00"]

1. e4 {[%clk 0:02:59]}  e5 {[%clk 0:03:00]} 2. Nf3 {[%clk 0:02:59]}  Nc6 {[%clk 0:03:00]} 3. d4 {[%clk 0:03:00]}  exd4 {[%clk 0:02:58]} 4. c3 {[%clk 0:03:00]}  d5 {[%clk 0:02:56]} 5. exd5 {[%clk 0:03:00]}  Qxd5 {[%clk 0:02:56]} 6. Nxd4 {[%clk 0:03:01]}  Nxd4 {[%clk 0:02:56]} 7. cxd4 {[%clk 0:03:01]}  Nf6 {[%clk 0:02:46]} 8. Nc3 {[%clk 0:03:02]}  Qa5 {[%clk 0:02:40]} 9. Qe2+ {[%clk 0:02:58]}  Be6 {[%clk 0:02:37]} 10. Qb5+ {[%clk 0:02:58]}  Qxb5 {[%clk 0:02:35]} 11. Bxb5+ {[%clk 0:02:57]}  c6 {[%clk 0:02:35]} 12. Be2 {[%clk 0:02:57]}  O-O-O {[%clk 0:02:33]} 13. Be3 {[%clk 0:02:58]}  Bb4 {[%clk 0:02:28]} 14. O-O {[%clk 0:02:54]}  Nd5 {[%clk 0:02:23]} 15. Nxd5 {[%clk 0:02:51]}  Bxd5 {[%clk 0:02:24]} 16. a3 {[%clk 0:02:51]}  Bd6 {[%clk 0:02:21]} 17. b4 {[%clk 0:02:49]}  f5 {[%clk 0:02:20]} 18. Bg5 {[%clk 0:02:11]}  Rde8 {[%clk 0:02:20]} 19. Bd3 {[%clk 0:02:09]}  Be4 {[%clk 0:02:09]} 20. Bc4 {[%clk 0:02:07]}  f4 {[%clk 0:02:01]} 21. f3 {[%clk 0:01:56]}  Bf5 {[%clk 0:01:49]} 22. d5 {[%clk 0:01:41]}  h6 {[%clk 0:01:23]} 23. Bh4 {[%clk 0:01:35]}  g5 {[%clk 0:01:24]} 24. Bf2 {[%clk 0:01:35]}  Kb8 {[%clk 0:01:11]} 25. dxc6 {[%clk 0:01:34]}  bxc6 {[%clk 0:01:12]} 26. Rfd1 {[%clk 0:01:31]}  Be5 {[%clk 0:01:07]} 27. Ra2 {[%clk 0:01:28]}  Rd8 {[%clk 0:00:58]} 28. Rc1 {[%clk 0:01:23]}  h5 {[%clk 0:00:48]} 29. Ba6 {[%clk 0:01:11]}  g4 {[%clk 0:00:41]} 30. Bh4 {[%clk 0:00:49]}  Rd6 {[%clk 0:00:36]} 31. Re2 {[%clk 0:00:41]}  Bd4+ {[%clk 0:00:35]} 32. Kh1 {[%clk 0:00:41]}  gxf3 {[%clk 0:00:34]} 33. gxf3 {[%clk 0:00:41]}  Be3 {[%clk 0:00:31]} 34. Rce1 {[%clk 0:00:36]}  Rg8 {[%clk 0:00:30]} 35. Bc4 {[%clk 0:00:34]}  Rg7 {[%clk 0:00:21]} 36. Rxe3 {[%clk 0:00:20]}  fxe3 {[%clk 0:00:21]} 37. Bg3 {[%clk 0:00:21]}  Rxg3 {[%clk 0:00:14]} 38. hxg3 {[%clk 0:00:21]}  Rg6 {[%clk 0:00:08]} 39. Kh2 {[%clk 0:00:21]}  Be6 {[%clk 0:00:05]} 40. Bd3 {[%clk 0:00:19]}  Rf6 {[%clk 0:00:05]} 41. Rxe3 {[%clk 0:00:19]}  Bd5 {[%clk 0:00:06]} 42. Kg2 {[%clk 0:00:18]}  Kc7 {[%clk 0:00:04]} 43. Be4 {[%clk 0:00:18]}  Kd6 {[%clk 0:00:03]} 44. Bxd5 {[%clk 0:00:18]}  Kxd5 {[%clk 0:00:04]} 45. Rc3 {[%clk 0:00:17]}  a6 {[%clk 0:00:02]} 46. Rc5+ {[%clk 0:00:17]}  Kd4 {[%clk 0:00:02]} 47. Rxh5 {[%clk 0:00:18]}  Kc3 {[%clk 0:00:02]} 48. Ra5 {[%clk 0:00:19]}  Kc4 {[%clk 0:00:01]} 49. Rxa6 {[%clk 0:00:19]}  Kb5 {[%clk 0:00:02]} 50. Ra5+ {[%clk 0:00:20]}  Kb6 {[%clk 0:00:02]} 51. Rc5 {[%clk 0:00:20]}  Rd6 {[%clk 0:00:02]} 52. Rc3 {[%clk 0:00:20]}  Rd4 {[%clk 0:00:03]} 53. Kh3 {[%clk 0:00:20]}  Rd1 {[%clk 0:00:02]} 54. g4 {[%clk 0:00:20]}  Kb5 {[%clk 0:00:03]} 55. g5 {[%clk 0:00:20]}  Ka4 {[%clk 0:00:03]} 56. Kg4 {[%clk 0:00:20]}  Rg1+ {[%clk 0:00:03]} 57. Kf5 {[%clk 0:00:21]}  Rg3 {[%clk 0:00:02]} 58. g6 {[%clk 0:00:21]}  Rg1 {[%clk 0:00:01]} 59. Kf6 {[%clk 0:00:21]}  c5 {[%clk 0:00:02]} 60. bxc5 {[%clk 0:00:21]}  Kb5 {[%clk 0:00:01]} 61. g7 {[%clk 0:00:21]}  Kc6 {[%clk 0:00:00]} 62. Kf7 {[%clk 0:00:22]} 1-0

[Event "December 19 Early 2023"]
[Site "https://www.chess.com"]
[Date "2023.12.19"]
[Round "3"]
[White "Wanyama, Harold"]
[Black "Hartikainen, Jarmo"]
[Result "0-1"]
[Board "193"]
[TimeControl "180+1"]
[WhiteFideId "10000380"]
[BlackFideId "503134"]
[WhiteElo "2228"]
[BlackElo "2130"]
[WhiteTeam "UGA"]
[BlackTeam "FIN"]
[WhiteClock "0:01:03"]
[BlackClock "0:00:17"]

1. d4 {[%clk 0:03:00]}  d5 {[%clk 0:02:59]} 2. c4 {[%clk 0:03:00]}  c5 {[%clk 0:02:59]} 3. dxc5 {[%clk 0:02:59]}  e6 {[%clk 0:02:58]} 4. cxd5 {[%clk 0:02:59]}  Bxc5 {[%clk 0:02:58]} 5. Nc3 {[%clk 0:02:57]}  Nf6 {[%clk 0:02:58]} 6. e4 {[%clk 0:02:41]}  exd5 {[%clk 0:02:52]} 7. exd5 {[%clk 0:02:41]}  O-O {[%clk 0:02:51]} 8. Be2 {[%clk 0:02:41]}  Nbd7 {[%clk 0:02:40]} 9. Nf3 {[%clk 0:02:41]}  Nb6 {[%clk 0:02:40]} 10. Bg5 {[%clk 0:02:28]}  Nbxd5 {[%clk 0:02:03]} 11. Qb3 {[%clk 0:02:19]}  Nxc3 {[%clk 0:01:49]} 12. bxc3 {[%clk 0:02:20]}  Bxf2+ {[%clk 0:01:46]} 13. Kf1 {[%clk 0:02:15]}  Bb6 {[%clk 0:01:41]} 14. Rd1 {[%clk 0:02:13]}  Qe7 {[%clk 0:01:39]} 15. Bc4 {[%clk 0:02:11]}  Bg4 {[%clk 0:01:36]} 16. Re1 {[%clk 0:02:10]}  Qc5 {[%clk 0:01:26]} 17. Be3 {[%clk 0:02:09]}  Qc7 {[%clk 0:01:16]} 18. Bxb6 {[%clk 0:02:07]}  axb6 {[%clk 0:01:08]} 19. Ne5 {[%clk 0:02:05]}  Be6 {[%clk 0:00:57]} 20. Bxe6 {[%clk 0:02:03]}  fxe6 {[%clk 0:00:57]} 21. Qxe6+ {[%clk 0:02:02]}  Kh8 {[%clk 0:00:58]} 22. Nf3 {[%clk 0:01:45]}  Rfe8 {[%clk 0:00:49]} 23. Qb3 {[%clk 0:01:45]}  Ne4 {[%clk 0:00:45]} 24. Qb4 {[%clk 0:01:35]}  Qc6 {[%clk 0:00:32]} 25. Re2 {[%clk 0:01:25]}  Nxc3 {[%clk 0:00:20]} 26. Rc2 {[%clk 0:01:19]}  Qb5+ {[%clk 0:00:20]} 27. Qxb5 {[%clk 0:01:19]}  Nxb5 {[%clk 0:00:21]} 28. h4 {[%clk 0:01:17]}  h6 {[%clk 0:00:20]} 29. h5 {[%clk 0:01:16]}  Nd6 {[%clk 0:00:17]} 30. Rh4 {[%clk 0:01:15]}  Nf5 {[%clk 0:00:17]} 31. Rb4 {[%clk 0:01:03]}  Ne3+ {[%clk 0:00:17]} 0-1

[Event "December 19 Early 2023"]
[Site "https://www.chess.com"]
[Date "2023.12.19"]
[Round "3"]
[White "Garrido, Denis"]
[Black "Gulamirian, Korun"]
[Result "1-0"]
[Board "194"]
[TimeControl "180+1"]
[WhiteFideId "601217"]
[BlackFideId "4144899"]
[WhiteElo "2408"]
[BlackElo "1621"]
[WhiteTeam "FRA"]
[BlackTeam "RUS"]
[WhiteClock "0:01:18"]
[BlackClock "0:00:07"]

1. d4 {[%clk 0:03:00]}  g6 {[%clk 0:02:52]} 2. c4 {[%clk 0:02:58]}  Bg7 {[%clk 0:02:47]} 3. Nc3 {[%clk 0:02:58]}  e6 {[%clk 0:02:47]} 4. e4 {[%clk 0:02:57]}  Ne7 {[%clk 0:02:45]} 5. h4 {[%clk 0:02:56]}  O-O {[%clk 0:02:44]} 6. h5 {[%clk 0:02:56]}  d5 {[%clk 0:02:42]} 7. cxd5 {[%clk 0:02:51]}  exd5 {[%clk 0:02:42]} 8. e5 {[%clk 0:02:52]}  Bf5 {[%clk 0:02:31]} 9. Be3 {[%clk 0:02:46]}  a6 {[%clk 0:02:30]} 10. Qd2 {[%clk 0:02:45]}  Qd7 {[%clk 0:02:30]} 11. Bh6 {[%clk 0:02:44]}  Re8 {[%clk 0:02:25]} 12. Bxg7 {[%clk 0:02:42]}  Kxg7 {[%clk 0:02:25]} 13. g4 {[%clk 0:02:38]}  Bxg4 {[%clk 0:02:17]} 14. hxg6 {[%clk 0:02:38]}  h5 {[%clk 0:01:55]} 15. gxf7 {[%clk 0:02:35]}  Kxf7 {[%clk 0:01:52]} 16. Nh3 {[%clk 0:02:31]}  Ng6 {[%clk 0:01:44]} 17. Ng5+ {[%clk 0:02:29]}  Kg7 {[%clk 0:01:33]} 18. f3 {[%clk 0:02:27]}  Bf5 {[%clk 0:01:18]} 19. Rxh5 {[%clk 0:02:26]}  Rh8 {[%clk 0:01:17]} 20. Rxh8 {[%clk 0:02:25]}  Kxh8 {[%clk 0:01:17]} 21. O-O-O {[%clk 0:02:22]}  Nc6 {[%clk 0:01:11]} 22. Qh2+ {[%clk 0:02:16]}  Kg8 {[%clk 0:01:07]} 23. Be2 {[%clk 0:02:13]}  Qg7 {[%clk 0:00:44]} 24. Qh5 {[%clk 0:02:08]}  Nce7 {[%clk 0:00:40]} 25. Rg1 {[%clk 0:01:53]}  Rc8 {[%clk 0:00:24]} 26. Na4 {[%clk 0:01:36]}  b6 {[%clk 0:00:21]} 27. Bxa6 {[%clk 0:01:35]}  Ra8 {[%clk 0:00:18]} 28. Bb5 {[%clk 0:01:35]}  c6 {[%clk 0:00:19]} 29. Nxb6 {[%clk 0:01:34]}  Rb8 {[%clk 0:00:17]} 30. Na4 {[%clk 0:01:21]}  cxb5 {[%clk 0:00:16]} 31. Nc5 {[%clk 0:01:21]}  Nc6 {[%clk 0:00:15]} 32. Nge6 {[%clk 0:01:20]}  Bxe6 {[%clk 0:00:14]} 33. Rxg6 {[%clk 0:01:20]}  Nxd4 {[%clk 0:00:11]} 34. Rxg7+ {[%clk 0:01:20]}  Kxg7 {[%clk 0:00:12]} 35. Qg5+ {[%clk 0:01:18]}  Kf7 {[%clk 0:00:12]} 36. Qf6+ {[%clk 0:01:17]}  Kg8 {[%clk 0:00:10]} 37. Nxe6 {[%clk 0:01:18]}  Nxe6 {[%clk 0:00:11]} 38. Qxe6+ {[%clk 0:01:18]}  Kg7 {[%clk 0:00:10]} 39. Qd7+ {[%clk 0:01:17]}  Kg6 {[%clk 0:00:10]} 40. Qd6+ {[%clk 0:01:17]}  Kf5 {[%clk 0:00:07]} 41. Qxb8 {[%clk 0:01:18]} 1-0

[Event "December 19 Early 2023"]
[Site "https://www.chess.com"]
[Date "2023.12.19"]
[Round "3"]
[White "Dowgird, Filip"]
[Black "Umarov, Sabir"]
[Result "1-0"]
[Board "200"]
[TimeControl "180+1"]
[WhiteFideId "1121235"]
[BlackFideId "14200538"]
[WhiteElo "2248"]
[BlackElo "2301"]
[WhiteTeam "POL"]
[BlackTeam "UZB"]
[WhiteClock "0:00:54"]
[BlackClock "0:00:00"]

1. d4 {[%clk 0:02:59]}  c6 {[%clk 0:02:57]} 2. Bf4 {[%clk 0:02:50]}  g6 {[%clk 0:02:52]} 3. e3 {[%clk 0:02:49]}  Bg7 {[%clk 0:02:37]} 4. c3 {[%clk 0:02:49]}  d5 {[%clk 0:02:37]} 5. Nd2 {[%clk 0:02:47]}  f5 {[%clk 0:02:37]} 6. Ngf3 {[%clk 0:02:44]}  Nf6 {[%clk 0:02:37]} 7. h3 {[%clk 0:02:44]}  O-O {[%clk 0:02:38]} 8. Be2 {[%clk 0:02:43]}  Nbd7 {[%clk 0:02:36]} 9. g4 {[%clk 0:02:37]}  e6 {[%clk 0:02:25]} 10. Ne5 {[%clk 0:02:29]}  c5 {[%clk 0:02:03]} 11. Nxd7 {[%clk 0:02:26]}  Bxd7 {[%clk 0:02:01]} 12. dxc5 {[%clk 0:02:24]}  Ne4 {[%clk 0:01:51]} 13. gxf5 {[%clk 0:02:16]}  e5 {[%clk 0:01:44]} 14. Nxe4 {[%clk 0:02:14]}  Bxf5 {[%clk 0:00:42]} 15. Bg5 {[%clk 0:02:08]}  Qd7 {[%clk 0:00:35]} 16. Nd6 {[%clk 0:02:06]}  Qc6 {[%clk 0:00:31]} 17. Be7 {[%clk 0:01:49]}  Rfb8 {[%clk 0:00:29]} 18. Nxf5 {[%clk 0:01:49]}  gxf5 {[%clk 0:00:29]} 19. Bd6 {[%clk 0:01:45]}  Rd8 {[%clk 0:00:28]} 20. Qb3 {[%clk 0:01:41]}  Kh8 {[%clk 0:00:27]} 21. O-O-O {[%clk 0:01:39]}  d4 {[%clk 0:00:26]} 22. cxd4 {[%clk 0:01:36]}  exd4 {[%clk 0:00:24]} 23. Bb5 {[%clk 0:01:29]}  Qf3 {[%clk 0:00:17]} 24. exd4 {[%clk 0:01:27]}  Qxf2 {[%clk 0:00:17]} 25. Rhf1 {[%clk 0:01:24]}  Qh4 {[%clk 0:00:11]} 26. Rxf5 {[%clk 0:01:19]}  b6 {[%clk 0:00:03]} 27. Qg3 {[%clk 0:01:03]}  Qh6+ {[%clk 0:00:01]} 28. Bf4 {[%clk 0:01:01]}  Qe6 {[%clk 0:00:00]} 29. Rg5 {[%clk 0:00:54]} 1-0

[Event "December 19 Early 2023"]
[Site "https://www.chess.com"]
[Date "2023.12.19"]
[Round "3"]
[White "Stankovic, Boris"]
[Black "Rushbrooke, Remy"]
[Result "1-0"]
[Board "201"]
[TimeControl "180+1"]
[WhiteFideId "985317"]
[BlackFideId "443590"]
[WhiteElo "2265"]
[BlackElo "1942"]
[WhiteTeam "SRB"]
[BlackTeam "ENG"]
[WhiteClock "0:00:45"]
[BlackClock "0:00:00"]

1. e4 {[%clk 0:03:00]}  e5 {[%clk 0:03:00]} 2. Nf3 {[%clk 0:03:00]}  Nf6 {[%clk 0:03:00]} 3. d4 {[%clk 0:03:00]}  Nxe4 {[%clk 0:03:00]} 4. dxe5 {[%clk 0:02:58]}  d5 {[%clk 0:03:00]} 5. exd6 {[%clk 0:02:58]}  Bxd6 {[%clk 0:02:59]} 6. Bd3 {[%clk 0:02:57]}  Qe7 {[%clk 0:02:55]} 7. O-O {[%clk 0:02:57]}  O-O {[%clk 0:02:51]} 8. Re1 {[%clk 0:02:57]}  f5 {[%clk 0:02:41]} 9. Nbd2 {[%clk 0:02:54]}  Nc6 {[%clk 0:02:13]} 10. Nxe4 {[%clk 0:02:53]}  fxe4 {[%clk 0:02:14]} 11. Bxe4 {[%clk 0:02:54]}  Ne5 {[%clk 0:01:43]} 12. Nxe5 {[%clk 0:02:52]}  Bxe5 {[%clk 0:01:40]} 13. Bxh7+ {[%clk 0:02:46]}  Kxh7 {[%clk 0:01:32]} 14. Qh5+ {[%clk 0:02:46]}  Kg8 {[%clk 0:01:32]} 15. Rxe5 {[%clk 0:02:40]}  Qf6 {[%clk 0:01:21]} 16. Be3 {[%clk 0:02:34]}  Bg4 {[%clk 0:01:21]} 17. Qg5 {[%clk 0:02:34]}  Rad8 {[%clk 0:01:19]} 18. h3 {[%clk 0:02:31]}  Bc8 {[%clk 0:01:08]} 19. Qxf6 {[%clk 0:02:28]}  gxf6 {[%clk 0:01:09]} 20. Re7 {[%clk 0:02:27]}  Rf7 {[%clk 0:01:09]} 21. Rxf7 {[%clk 0:02:27]}  Kxf7 {[%clk 0:01:09]} 22. Kf1 {[%clk 0:02:22]}  Bf5 {[%clk 0:01:09]} 23. c3 {[%clk 0:02:14]}  b6 {[%clk 0:01:09]} 24. Ke1 {[%clk 0:02:10]}  a5 {[%clk 0:01:03]} 25. Rd1 {[%clk 0:02:09]}  Bd3 {[%clk 0:01:02]} 26. Bf4 {[%clk 0:01:58]}  c6 {[%clk 0:00:45]} 27. Bc7 {[%clk 0:01:56]}  Re8+ {[%clk 0:00:45]} 28. Kd2 {[%clk 0:01:55]}  Bc4 {[%clk 0:00:45]} 29. Re1 {[%clk 0:01:51]}  Rc8 {[%clk 0:00:36]} 30. Bxb6 {[%clk 0:01:49]}  Rb8 {[%clk 0:00:36]} 31. Bxa5 {[%clk 0:01:46]}  Rxb2+ {[%clk 0:00:36]} 32. Ke3 {[%clk 0:01:46]}  Rxa2 {[%clk 0:00:36]} 33. Bb4 {[%clk 0:01:46]}  Bd5 {[%clk 0:00:33]} 34. g4 {[%clk 0:01:43]}  Ra8 {[%clk 0:00:27]} 35. Kf4 {[%clk 0:01:40]}  Rh8 {[%clk 0:00:21]} 36. Kg3 {[%clk 0:01:37]}  Kg6 {[%clk 0:00:21]} 37. f4 {[%clk 0:01:35]}  f5 {[%clk 0:00:21]} 38. Bc5 {[%clk 0:01:30]}  Be4 {[%clk 0:00:20]} 39. Bd4 {[%clk 0:01:26]}  Re8 {[%clk 0:00:19]} 40. Ra1 {[%clk 0:01:24]}  Rb8 {[%clk 0:00:15]} 41. Ra7 {[%clk 0:01:23]}  Rb2 {[%clk 0:00:10]} 42. Rg7+ {[%clk 0:01:06]}  Kh6 {[%clk 0:00:10]} 43. Rf7 {[%clk 0:00:57]}  Rg2+ {[%clk 0:00:09]} 44. Kh4 {[%clk 0:00:57]}  fxg4 {[%clk 0:00:10]} 45. hxg4 {[%clk 0:00:58]}  Rh2+ {[%clk 0:00:10]} 46. Kg3 {[%clk 0:00:57]}  Rg2+ {[%clk 0:00:10]} 47. Kh3 {[%clk 0:00:58]}  Kg6 {[%clk 0:00:08]} 48. Rf6+ {[%clk 0:00:55]}  Kh7 {[%clk 0:00:07]} 49. f5 {[%clk 0:00:48]}  Rd2 {[%clk 0:00:05]} 50. Rg6 {[%clk 0:00:45]}  Rd3+ {[%clk 0:00:06]} 51. Kh4 {[%clk 0:00:45]}  Rd1 {[%clk 0:00:03]} 52. Rg7+ {[%clk 0:00:45]}  Kh8 {[%clk 0:00:03]} 53. Re7+ {[%clk 0:00:45]}  Kg8 {[%clk 0:00:00]} 54. Rxe4 {[%clk 0:00:45]} 1-0

[Event "December 19 Early 2023"]
[Site "https://www.chess.com"]
[Date "2023.12.19"]
[Round "3"]
[White "Olhovik, Andrei"]
[Black "Lesbekova, Assel"]
[Result "1-0"]
[Board "202"]
[TimeControl "180+1"]
[WhiteFideId "13507397"]
[BlackFideId "13713248"]
[WhiteElo "2172"]
[BlackElo "1861"]
[WhiteTeam "FID"]
[BlackTeam "KGZ"]
[WhiteClock "0:01:55"]
[BlackClock "0:02:14"]

1. d4 {[%clk 0:03:00]}  d5 {[%clk 0:02:59]} 2. c4 {[%clk 0:03:00]}  e6 {[%clk 0:03:00]} 3. Nc3 {[%clk 0:03:00]}  a6 {[%clk 0:02:59]} 4. cxd5 {[%clk 0:02:59]}  exd5 {[%clk 0:03:00]} 5. Bf4 {[%clk 0:03:00]}  Nf6 {[%clk 0:03:00]} 6. e3 {[%clk 0:03:00]}  Bd6 {[%clk 0:03:00]} 7. Bg3 {[%clk 0:02:53]}  O-O {[%clk 0:03:00]} 8. Bd3 {[%clk 0:02:53]}  Be6 {[%clk 0:02:58]} 9. Nf3 {[%clk 0:02:51]}  c5 {[%clk 0:02:57]} 10. Bxd6 {[%clk 0:02:49]}  Qxd6 {[%clk 0:02:57]} 11. dxc5 {[%clk 0:02:49]}  Qxc5 {[%clk 0:02:58]} 12. Rc1 {[%clk 0:02:49]}  Qa5 {[%clk 0:02:54]} 13. O-O {[%clk 0:02:49]}  Nc6 {[%clk 0:02:46]} 14. Qa4 {[%clk 0:02:47]}  Qb4 {[%clk 0:02:41]} 15. Qxb4 {[%clk 0:02:41]}  Nxb4 {[%clk 0:02:42]} 16. Bb1 {[%clk 0:02:41]}  b5 {[%clk 0:02:37]} 17. Rfd1 {[%clk 0:02:38]}  Rac8 {[%clk 0:02:36]} 18. Nd4 {[%clk 0:02:31]}  Ne4 {[%clk 0:02:25]} 19. a3 {[%clk 0:01:58]}  Nxc3 {[%clk 0:02:23]} 20. Rxc3 {[%clk 0:01:55]}  Rxc3 {[%clk 0:02:14]} 21. bxc3 {[%clk 0:01:55]} 1-0